fUST/lending_fUST_20260226
["ID","MTS","AMOUNT","RATE_DAILY","PERIOD"]
[406668468,1772054826544,-500.0,0.00015696,2]
[406668469,1772054826568,-500.0,0.00015696,2]
[406668470,1772054826590,-500.0,0.00015696,2]
[406668471,1772054826614,-579.78143632,0.00015696,2]
[406668472,1772054826637,-500.0,0.00015696,2]
[406668473,1772054826659,-500.0,0.00015696,2]
[406668474,1772054826681,-500.0,0.00015696,2]
[406668475,1772054826703,-500.0,0.00015696,2]
[406668476,1772054826726,-500.0,0.00015696,2]
[406668477,1772054826749,-500.0,0.00015696,2]
[406668478,1772054826774,-500.0,0.00015696,2]
[406668479,1772054826797,-500.0,0.00015696,2]
[406668480,1772054826818,-500.0,0.00015696,2]
[406668481,1772054826841,-500.0,0.00015696,2]
[406668482,1772054826864,-500.0,0.00015696,2]
[406668483,1772054826888,-500.0,0.00015696,2]
[406668484,1772054826913,-500.0,0.00015696,2]
[406668485,1772054826936,-500.0,0.00015696,2]
[406668486,1772054826958,-500.0,0.00015696,2]
[406668487,1772054826980,-500.0,0.00015696,2]
[406668488,1772054827002,-500.0,0.00015696,2]
[406668489,1772054827026,-500.0,0.00015696,2]
[406668490,1772054827050,-500.0,0.00015696,2]
[406668491,1772054827074,-500.0,0.00015696,2]
[406668492,1772054827099,-500.0,0.00015696,2]
[406668493,1772054827121,-537.06751577,0.00015696,2]
[406668494,1772054827372,-500.0,0.00015696,2]
[406668495,1772054827394,-500.0,0.00015696,2]
[406668496,1772054827415,-500.0,0.00015696,2]
[406668497,1772054827436,-500.0,0.00015696,2]
[406668498,1772054827458,-500.0,0.00015696,2]
[406668499,1772054827480,-500.0,0.00015696,2]
[406668500,1772054827501,-500.0,0.00015696,2]
[406668501,1772054827525,-500.0,0.00015696,2]
[406668502,1772054827545,-6081.67749765,0.00015698,2]
[406668503,1772054827570,-450.81495366,0.00015699,2]
[406668504,1772054827591,-1036.91637466,0.000157,30]
[406668505,1772054827611,-10820.34977656,0.000157,2]
[406668506,1772054827631,-200.91801658,0.00015809,2]
[406668507,1772054827652,-500.0,0.0001581,2]
[406668508,1772054827671,-230.075994,0.0001581,2]
[406668509,1772054827695,-2652.97711881,0.00015825,2]
[406668510,1772054827714,-259.09,0.00016,2]
[406668511,1772054827737,-500.0,0.00016012,2]
[406668512,1772054827758,-263.91976586,0.00016012,2]
[406668513,1772054827777,-500.0,0.00016012,2]
[406668514,1772054827800,-300.0,0.00016013,2]
[406668515,1772054827820,-300.0,0.00016013,2]
[406668516,1772054827842,-300.0,0.00016013,2]
[406668517,1772054827863,-300.0,0.00016013,2]
[406668518,1772054827887,-300.0,0.00016013,2]
[406668519,1772054827909,-300.0,0.00016013,2]
[406668520,1772054827931,-300.0,0.00016013,2]
[406668521,1772054827952,-300.0,0.00016013,2]
[406668522,1772054827974,-300.0,0.00016013,2]
[406668523,1772054827995,-300.0,0.00016013,2]
[406668524,1772054828018,-300.0,0.00016013,2]
[406668525,1772054828039,-300.0,0.00016013,2]
[406668526,1772054828060,-300.0,0.00016013,2]
[406668527,1772054828081,-300.0,0.00016013,2]
[406668528,1772054828102,-300.0,0.00016013,2]
[406668529,1772054828124,-600.0,0.00016332,2]
[406668530,1772054828145,-150.0,0.00016438,2]
[406668531,1772054828167,-150.0,0.00016438,2]
[406668532,1772054828186,-420.0,0.00016479,2]
[406668533,1772054828207,-640.84581873,0.00016485,30]
[406668534,1772054828228,-1680.0,0.00016562,2]
[406668535,1772054828249,-4306.40564946,0.00016925,2]
[406668536,1772054828268,-156.12449561,0.00016986,2]
[406668537,1772054828287,-150.94234474,0.00016986,2]
[406668538,1772054828307,-289.34715,0.00016996,2]
[406668539,1772054828327,-638.34690514,0.00016998,2]
[406668540,1772054828347,-500.0,0.00016998,2]
[406668541,1772054828367,-187.18584781,0.00016998,2]
[406668542,1772054828389,-500.0,0.00016998,2]
[406668543,1772054828408,-500.0,0.00016998,2]
[406668544,1772054828429,-1000.0,0.00017,2]
[406668545,1772054828449,-1000.0,0.00017,2]
[406668546,1772054828473,-1000.0,0.00017,2]
[406668547,1772054828494,-1000.0,0.00017,2]
[406668548,1772054828514,-1000.0,0.00017,2]
[406668549,1772054828534,-1000.0,0.00017,2]
[406668550,1772054828554,-1000.0,0.00017,2]
[406668551,1772054828574,-1000.0,0.00017,2]
[406668552,1772054828593,-1000.0,0.00017,2]
[406668553,1772054828622,-1000.0,0.00017,2]
[406668554,1772054828645,-1000.0,0.00017,2]
[406668555,1772054828666,-1000.0,0.00017,2]
[406668556,1772054828688,-1000.0,0.00017,2]
[406668557,1772054828708,-1000.0,0.00017,2]
[406668558,1772054828729,-1000.0,0.00017,2]
[406668559,1772054828750,-500.0,0.00017299,2]
[406668560,1772054828770,-471.19838051,0.00017299,2]
[406668561,1772054828790,-621.04229094,0.00017309,30]
[406668562,1772054828812,-519.58333642,0.00017699,2]
[406668563,1772054828832,-150.0,0.00017808,2]
[406668564,1772054828856,-720.0,0.00017965,2]
[406668565,1772054828877,-587.0,0.00018034,2]
[406668566,1772054828898,-671.0,0.00018217,2]
[406668567,1772054828918,-263.86,0.00018249,2]
[406668568,1772054828938,-500.0,0.00018249,2]
[406668569,1772054828960,-4667.83222757,0.0001825,2]
[406668570,1772054828980,-250.0,0.00018311,2]
[406668571,1772054829000,-250.0,0.00018356,2]
[406668572,1772054829020,-7370.56491174,0.00018551,2]
[406668573,1772054829040,-162.3944302,0.00018804,2]
[406668574,1772054829059,-1110.69374357,0.00018903,2]
[406668575,1772054829079,-404.94928764,0.00018904,2]
[406668576,1772054829099,-151.0,0.00018904,2]
[406668577,1772054829118,-151.0,0.00018904,2]
[406668578,1772054829137,-151.0,0.00018904,2]
[406668579,1772054829161,-500.0,0.00018904,2]
[406668580,1772054829181,-250.0,0.00018904,2]
[406668581,1772054829201,-250.0,0.00018904,2]
[406668582,1772054829223,-151.0,0.00018904,2]
[406668583,1772054829243,-500.0,0.00018904,2]
[406668584,1772054829262,-250.0,0.00018904,2]
[406668585,1772054829282,-151.0,0.00018904,2]
[406668586,1772054829303,-500.0,0.00018904,2]
[406668587,1772054829322,-250.0,0.00018904,2]
[406668588,1772054829342,-250.0,0.00018904,2]
[406668589,1772054829362,-151.0,0.00018904,2]
[406668590,1772054829382,-500.0,0.00018904,2]
[406668591,1772054829405,-250.0,0.00018904,2]
[406668592,1772054829424,-250.0,0.00018904,2]
[406668593,1772054829445,-151.0,0.00018904,2]
[406668594,1772054829479,-194.72792766,0.00018904,2]
[406668595,1772054829515,-500.0,0.00018904,2]
[406668596,1772054829544,-250.0,0.00018904,2]
[406668597,1772054829566,-151.0,0.00018904,2]
[406668598,1772054829587,-250.0,0.00018904,2]
[406668599,1772054829607,-644.79446246,0.00018904,2]
[406668600,1772054829626,-500.0,0.00018904,2]
[406668601,1772054829646,-250.0,0.00018904,2]
[406668602,1772054829667,-250.0,0.00018904,2]
[406668603,1772054829687,-201.93286099,0.00018904,2]
[406668604,1772054829707,-151.0,0.00018904,2]
[406668605,1772054829727,-500.0,0.00018904,2]
[406668606,1772054829747,-250.0,0.00018904,2]
[406668607,1772054829768,-209.40437684,0.00018904,2]
[406668608,1772054829790,-250.0,0.00018904,2]
[406668609,1772054829815,-250.0,0.00018904,2]
[406668610,1772054829836,-151.0,0.00018904,2]
[406668611,1772054829856,-500.0,0.00018904,2]
[406668612,1772054829881,-250.0,0.00018904,2]
[406668613,1772054830067,-217.15233878,0.00018904,2]
[406668614,1772054830090,-250.0,0.00018904,2]
[406668615,1772054830112,-250.0,0.00018904,2]
[406668616,1772054830133,-151.0,0.00018904,2]
[406668617,1772054830159,-500.0,0.00018904,2]
[406668618,1772054830183,-250.0,0.00018904,2]
[406668619,1772054830208,-225.18697532,0.00018904,2]
[406668620,1772054830230,-250.0,0.00018904,2]
[406668621,1772054830253,-151.0,0.00018904,2]
[406668622,1772054830275,-250.0,0.00018904,2]
[406668623,1772054830296,-500.0,0.00018904,2]
[406668624,1772054830318,-250.0,0.00018904,2]
[406668625,1772054830341,-233.51889341,0.00018904,2]
[406668626,1772054830361,-250.0,0.00018904,2]
[406668627,1772054830382,-151.0,0.00018904,2]
[406668628,1772054830404,-250.0,0.00018904,2]
[406668629,1772054830426,-500.0,0.00018904,2]
[406668630,1772054830448,-250.0,0.00018904,2]
[406668631,1772054830469,-250.0,0.00018904,2]
[406668632,1772054830490,-242.15909246,0.00018904,2]
[406668633,1772054830511,-151.0,0.00018904,2]
[406668634,1772054830532,-250.0,0.00018904,2]
[406668635,1772054830555,-500.0,0.00018904,2]
[406668636,1772054830576,-250.0,0.00018904,2]
[406668637,1772054830596,-250.0,0.00018904,2]
[406668638,1772054830622,-251.11897888,0.00018904,2]
[406668639,1772054830644,-151.0,0.00018904,2]
[406668640,1772054830665,-250.0,0.00018904,2]
[406668641,1772054830687,-500.0,0.00018904,2]
[406668642,1772054830708,-250.0,0.00018904,2]
[406668643,1772054830729,-250.0,0.00018904,2]
[406668644,1772054830750,-151.0,0.00018904,2]
[406668645,1772054830770,-250.0,0.00018904,2]
[406668646,1772054830792,-260.4103811,0.00018904,2]
[406668647,1772054830812,-250.0,0.00018904,2]
[406668648,1772054830836,-250.0,0.00018904,2]
[406668649,1772054830857,-270.0455652,0.00018904,2]
[406668650,1772054830883,-250.0,0.00018904,2]
[406668651,1772054830903,-151.0,0.00018904,2]
[406668652,1772054830924,-250.0,0.00018904,2]
[406668653,1772054830943,-250.0,0.00018904,2]
[406668654,1772054830964,-280.03725112,0.00018904,2]
[406668655,1772054830984,-250.0,0.00018904,2]
[406668656,1772054831004,-250.0,0.00018904,2]
[406668657,1772054831028,-151.0,0.00018904,2]
[406668658,1772054831050,-290.39862941,0.00018904,2]
[406668659,1772054831070,-250.0,0.00018904,2]
[406668660,1772054831090,-250.0,0.00018904,2]
[406668661,1772054831111,-151.0,0.00018904,2]
[406668662,1772054831132,-301.1433787,0.00018904,2]
[406668663,1772054831156,-250.0,0.00018904,2]
[406668664,1772054831175,-250.0,0.00018904,2]
[406668665,1772054831195,-151.0,0.00018904,2]
[406668666,1772054831215,-250.0,0.00018904,2]
[406668667,1772054831236,-250.0,0.00018904,2]
[406668668,1772054831256,-250.0,0.00018904,2]
[406668669,1772054831276,-250.0,0.00018904,2]
[406668670,1772054831295,-250.0,0.00018904,2]
[406668671,1772054831316,-1957.856,0.00018904,2]
[406668672,1772054831337,-250.0,0.00018904,2]
[406668673,1772054831356,-250.0,0.00018904,2]
[406668674,1772054831376,-250.0,0.00018904,2]
[406668675,1772054831397,-250.0,0.00018904,2]
[406668676,1772054831417,-250.0,0.00018904,2]
[406668677,1772054831438,-250.0,0.00018904,2]
[406668678,1772054831458,-250.0,0.00018904,2]
[406668679,1772054831478,-250.0,0.00018904,2]
[406668680,1772054831499,-250.0,0.00018904,2]
[406668681,1772054831524,-250.0,0.00018904,2]
[406668682,1772054831545,-250.0,0.00018904,2]
[406668683,1772054831564,-250.0,0.00018904,2]
[406668684,1772054831584,-250.0,0.00018904,2]
[406668685,1772054831603,-250.0,0.00018904,2]
[406668686,1772054831623,-250.0,0.00018904,2]
[406668687,1772054831643,-2579.17784983,0.00018904,2]
[406668688,1772054831662,-250.0,0.00018904,2]
[406668689,1772054831682,-250.0,0.00018904,2]
[406668690,1772054831703,-250.0,0.00018904,2]
[406668691,1772054831724,-250.0,0.00018904,2]
[406668692,1772054831745,-250.0,0.00018904,2]
[406668693,1772054831765,-250.0,0.00018904,2]
[406668694,1772054831785,-250.0,0.00018904,2]
[406668695,1772054831804,-250.0,0.00018904,2]
[406668696,1772054831825,-250.0,0.00018904,2]
[406668697,1772054831846,-250.0,0.00018904,2]
[406668698,1772054831866,-250.0,0.00018904,2]
[406668699,1772054831886,-250.0,0.00018904,2]
[406668700,1772054831907,-250.0,0.00018904,2]
[406668701,1772054831928,-250.0,0.00018904,2]
[406668702,1772054831948,-250.0,0.00018904,2]
[406668703,1772054831969,-250.0,0.00018904,2]
[406668704,1772054831990,-500.0,0.00018904,2]
[406668705,1772054832011,-250.0,0.00018904,2]
[406668706,1772054832032,-250.0,0.00018904,2]
[406668707,1772054832054,-500.0,0.00018904,2]
[406668708,1772054832075,-250.0,0.00018904,2]
[406668709,1772054832095,-250.0,0.00018904,2]
[406668710,1772054832116,-250.0,0.00018904,2]
[406668711,1772054832136,-500.0,0.00018904,2]
[406668712,1772054832160,-250.0,0.00018904,2]
[406668713,1772054832179,-250.0,0.00018904,2]
[406668714,1772054832202,-250.0,0.00018904,2]
[406668715,1772054832225,-500.0,0.00018904,2]
[406668716,1772054832246,-250.0,0.00018904,2]
[406668717,1772054832266,-250.0,0.00018904,2]
[406668718,1772054832287,-500.0,0.00018904,2]
[406668719,1772054832308,-250.0,0.00018904,2]
[406668720,1772054832329,-250.0,0.00018904,2]
[406668721,1772054832350,-250.0,0.00018904,2]
[406668722,1772054832370,-250.0,0.00018904,2]
[406668723,1772054832391,-500.0,0.00018904,2]
[406668724,1772054832411,-250.0,0.00018904,2]
[406668725,1772054832432,-500.0,0.00018904,2]
[406668726,1772054832452,-250.0,0.00018904,2]
[406668727,1772054832472,-250.0,0.00018904,2]
[406668728,1772054832654,-250.0,0.00018904,2]
[406668729,1772054832678,-500.0,0.00018904,2]
[406668730,1772054832700,-250.0,0.00018904,2]
[406668731,1772054832720,-250.0,0.00018904,2]
[406668732,1772054832741,-500.0,0.00018904,2]
[406668733,1772054832761,-250.0,0.00018904,2]
[406668734,1772054832784,-500.0,0.00018904,2]
[406668735,1772054832806,-250.0,0.00018904,2]
[406668736,1772054832827,-500.0,0.00018904,2]
[406668737,1772054832847,-250.0,0.00018904,2]
[406668738,1772054832867,-162.380719,0.00018904,2]
[406668739,1772054832888,-500.0,0.00018904,2]
[406668740,1772054832910,-250.0,0.00018904,2]
[406668741,1772054832932,-500.0,0.00018904,2]
[406668742,1772054832953,-500.0,0.00018904,2]
[406668743,1772054832974,-250.0,0.00018904,2]
[406668744,1772054832994,-500.0,0.00018904,2]
[406668745,1772054833015,-500.0,0.00018904,2]
[406668746,1772054833037,-500.0,0.00018904,2]
[406668747,1772054833059,-500.0,0.00018904,2]
[406668748,1772054833079,-500.0,0.00018904,2]
[406668749,1772054833100,-496.26164138,0.00018904,2]
[406668765,1772054947097,-2046.27547646,0.00017998,2]
[406668766,1772054954072,-1168.28126975,0.00017998,2]
[406668767,1772054959083,-294.46712719,0.00017998,2]
[406668768,1772054959408,507.77614406,0.00017936,2]
[406668769,1772054960078,-502.03678577,0.00017936,2]
[406668808,1772055032079,-300.0,0.00017923,2]
[406668811,1772055032088,-11099.882211,0.00017924,2]
[406668814,1772055032098,-685.0,0.00017924,2]
[406668817,1772055032108,-1363.52480397,0.00017936,2]
[406668820,1772055032117,-354.99767368,0.00018024,2]
[406668823,1772055032127,-210.99645539,0.00018113,5]
[406669317,1772055038585,-200.0,0.00017948,3]
[406669318,1772055038595,-1515.86015375,0.00018113,5]
[406669319,1772055038604,-300.0,0.00018281,2]
[406669320,1772055038613,-300.0,0.00018281,2]
[406669321,1772055038623,-300.0,0.00018281,2]
[406669322,1772055038633,-300.0,0.00018281,2]
[406669323,1772055038642,-300.0,0.00018281,2]
[406669324,1772055038651,-300.0,0.00018281,2]
[406669325,1772055038660,-300.0,0.00018281,2]
[406669326,1772055038669,-300.0,0.00018281,2]
[406669327,1772055038680,-300.0,0.00018281,2]
[406669328,1772055038690,-300.0,0.00018281,2]
[406669329,1772055038699,-281.10925225,0.00018281,2]
[406669330,1772055038711,-18.89074775,0.00018281,2]
[406669331,1772055038720,-300.0,0.00018281,2]
[406669332,1772055038729,-300.0,0.00018281,2]
[406669333,1772055038739,-300.0,0.00018281,2]
[406669334,1772055038749,-300.0,0.00018281,2]
[406669335,1772055038758,-600.0,0.00018646,2]
[406669336,1772055038767,-388.00751402,0.00018759,2]
[406669337,1772055038838,-2556.12496118,0.00018759,2]
[406669338,1772055038847,-777.43067162,0.00018781,5]
[406669339,1772055038857,-154.0746555,0.00018804,2]
[406669340,1772055038867,-3200.0,0.000189,2]
[406669341,1772055038876,-1334.7172274,0.00018904,2]
[406669342,1772055038889,-3.73835862,0.00018904,2]
[406669343,1772055038901,-533.88981491,0.00018904,2]
[406669344,1772055038911,-500.0,0.00018904,2]
[406669345,1772055038920,-500.0,0.00018904,2]
[406669346,1772055038930,-50.00430822,0.00018904,2]
[406669380,1772055042213,-449.99569178,0.00018904,2]
[406669381,1772055042224,-500.0,0.00018904,2]
[406669382,1772055042236,-500.0,0.00018904,2]
[406669383,1772055042246,-500.0,0.00018904,2]
[406669384,1772055042256,-151.0,0.00018979,2]
[406669385,1772055042267,-151.0,0.00018979,2]
[406669386,1772055042276,-151.0,0.00018979,2]
[406669387,1772055042287,-151.0,0.00018979,2]
[406669388,1772055042298,-151.0,0.00018979,2]
[406669389,1772055042308,-151.0,0.00018979,2]
[406669390,1772055042317,-250.0,0.00018979,2]
[406669391,1772055042327,-151.0,0.00018979,2]
[406669392,1772055042336,-250.0,0.00018979,2]
[406669393,1772055042347,-644.79446246,0.00018979,2]
[406669394,1772055042356,-194.72792766,0.00018979,2]
[406669395,1772055042366,-250.0,0.00018979,2]
[406669396,1772055042376,-250.0,0.00018979,2]
[406669397,1772055042386,-151.0,0.00018979,2]
[406669398,1772055042395,-201.93286099,0.00018979,2]
[406669399,1772055042405,-250.0,0.00018979,2]
[406669400,1772055042414,-250.0,0.00018979,2]
[406669401,1772055042424,-209.40437684,0.00018979,2]
[406669402,1772055042433,-250.0,0.00018979,2]
[406669403,1772055042442,-250.0,0.00018979,2]
[406669404,1772055042452,-500.0,0.00018979,2]
[406669405,1772055042462,-217.15233878,0.00018979,2]
[406669406,1772055042472,-250.0,0.00018979,2]
[406669407,1772055042482,-151.0,0.00018979,2]
[406669408,1772055042492,-500.0,0.00018979,2]
[406669409,1772055042501,-250.0,0.00018979,2]
[406669410,1772055042510,-250.0,0.00018979,2]
[406669411,1772055042520,-225.18697532,0.00018979,2]
[406669412,1772055042529,-250.0,0.00018979,2]
[406669413,1772055042538,-250.0,0.00018979,2]
[406669414,1772055042547,-500.0,0.00018979,2]
[406669415,1772055042557,-2579.17784983,0.00018979,2]
[406669416,1772055042566,-151.0,0.00018979,2]
[406669417,1772055042577,-250.0,0.00018979,2]
[406669418,1772055042587,-250.0,0.00018979,2]
[406669419,1772055042596,-250.0,0.00018979,2]
[406669421,1772055042606,-250.0,0.00018979,2]
[406669423,1772055042616,-250.0,0.00018979,2]
[406669424,1772055042626,-250.0,0.00018979,2]
[406669425,1772055042636,-250.0,0.00018979,2]
[406669427,1772055042646,-250.0,0.00018979,2]
[406669429,1772055042655,-250.0,0.00018979,2]
[406669431,1772055042665,-500.0,0.00018979,2]
[406669433,1772055042675,-250.0,0.00018979,2]
[406669435,1772055042685,-250.0,0.00018979,2]
[406669437,1772055042695,-500.0,0.00018979,2]
[406669439,1772055042704,-250.0,0.00018979,2]
[406669441,1772055042714,-250.0,0.00018979,2]
[406669443,1772055042723,-151.0,0.00018979,2]
[406669445,1772055042732,-233.51889341,0.00018979,2]
[406669447,1772055042743,-250.0,0.00018979,2]
[406669449,1772055042752,-250.0,0.00018979,2]
[406669451,1772055042762,-250.0,0.00018979,2]
[406669454,1772055042772,-151.0,0.00018979,2]
[406669456,1772055042781,-194.72792766,0.00018979,2]
[406669458,1772055042790,-242.15909246,0.00018979,2]
[406669460,1772055042799,-250.0,0.00018979,2]
[406669462,1772055042809,-250.0,0.00018979,2]
[406669464,1772055042818,-151.0,0.00018979,2]
[406669466,1772055042828,-500.0,0.00018979,2]
[406669469,1772055042838,-251.11897888,0.00018979,2]
[406669472,1772055042847,-250.0,0.00018979,2]
[406669475,1772055042856,-250.0,0.00018979,2]
[406669477,1772055042865,-250.0,0.00018979,2]
[406669479,1772055042874,-500.0,0.00018979,2]
[406669481,1772055042883,-151.0,0.00018979,2]
[406669483,1772055042892,-260.4103811,0.00018979,2]
[406669484,1772055042902,-250.0,0.00018979,2]
[406669485,1772055042912,-500.0,0.00018979,2]
[406669486,1772055042921,-151.0,0.00018979,2]
[406669487,1772055042930,-270.0455652,0.00018979,2]
[406669488,1772055042940,-250.0,0.00018979,2]
[406669489,1772055042949,-500.0,0.00018979,2]
[406669490,1772055042959,-151.0,0.00018979,2]
[406669491,1772055042969,-280.03725112,0.00018979,2]
[406669492,1772055042978,-250.0,0.00018979,2]
[406669493,1772055042988,-500.0,0.00018979,2]
[406669495,1772055042997,-151.0,0.00018979,2]
[406669496,1772055043006,-290.39862941,0.00018979,2]
[406669497,1772055043015,-250.0,0.00018979,2]
[406669498,1772055043025,-151.0,0.00018979,2]
[406669499,1772055043035,-301.1433787,0.00018979,2]
[406669500,1772055043044,-250.0,0.00018979,2]
[406669501,1772055043053,-500.0,0.00018979,2]
[406669502,1772055043063,-1957.856,0.00018979,2]
[406669503,1772055043072,-500.0,0.00018979,2]
[406669504,1772055043083,-500.0,0.00018979,2]
[406669505,1772055043093,-162.380719,0.00018979,2]
[406669506,1772055043103,-151.0,0.00018979,2]
[406669507,1772055043114,-151.0,0.00018979,2]
[406669508,1772055043124,-250.0,0.00018979,2]
[406669509,1772055043133,-151.0,0.00018979,2]
[406669510,1772055043143,-500.0,0.00018989,2]
[406669511,1772055043152,-500.0,0.00018989,2]
[406669512,1772055043162,-453.30904848,0.00018989,2]
[406669513,1772055043171,-34276.25229027,0.0001899,2]
[406669514,1772055043181,-500.0,0.00019,2]
[406669515,1772055043191,-1500.0,0.00019,2]
[406669516,1772055043201,-2030.296672,0.00019034,2]
[406669517,1772055043211,-2105.41764886,0.00019089,2]
[406669518,1772055043223,-2183.31810187,0.00019144,2]
[406669519,1772055043236,-2264.10087164,0.00019199,2]
[406669520,1772055043245,-5900.0,0.000192,2]
[406669521,1772055043254,-2347.87260389,0.00019254,2]
[406669522,1772055043265,-2434.74389024,0.00019309,2]
[406669523,1772055043274,-1215.9125,0.00019339,30]
[406669524,1772055043284,-2524.82941417,0.00019364,2]
[406669525,1772055043295,-824.0,0.0001938,120]
[406669526,1772055043306,-495.0,0.0001938,120]
[406669527,1772055043316,-297.0,0.0001938,120]
[406669528,1772055043325,-2618.2481025,0.00019419,2]
[406669529,1772055043335,-553.64373807,0.00019452,2]
[406669530,1772055043345,-2715.12328229,0.00019474,2]
[406669531,1772055043354,-500.0,0.00019526,2]
[406669532,1772055043536,-668.65185757,0.00019527,2]
[406669533,1772055043546,-2674.60743027,0.00019527,2]
[406669534,1772055043555,-199.95398477,0.00019527,2]
[406669535,1772055043565,-473.69336292,0.00019527,2]
[406669536,1772055043574,-852.64805326,0.00019527,2]
[406669537,1772055043584,-1515.81876136,0.00019527,2]
[406669538,1772055043593,-195.85903156,0.00019527,2]
[406669539,1772055043602,-783.43612625,0.00019527,2]
[406669540,1772055043612,-1762.73128405,0.00019527,2]
[406669541,1772055043622,-3133.74450498,0.00019527,2]
[406669542,1772055043631,-4896.47578904,0.00019527,2]
[406669543,1772055043641,-2815.58284374,0.00019529,2]
[406669544,1772055043650,-179.93075182,0.00019546,2]
[406669545,1772055043659,-420.0,0.00019558,2]
[406669546,1772055043669,-5029.25880578,0.00019576,2]
[406669547,1772055043678,-2919.75940895,0.00019584,2]
[406669548,1772055043687,-2388.43275293,0.000196,2]
[406669549,1772055043696,-2388.43275293,0.000196,2]
[406669550,1772055043706,-2388.43275293,0.000196,2]
[406669551,1772055043715,-2388.43275293,0.000196,2]
[406669552,1772055043725,-10000.0,0.000196,2]
[406669553,1772055043734,-306.48021141,0.00019687,2]
[406669554,1772055043743,-162.39443016,0.0001969,2]
[406669555,1772055043752,-885.54,0.0001969,3]
[406669556,1772055043761,-442.77,0.0001969,3]
[406669557,1772055043770,-221.39,0.0001969,3]
[406669558,1772055043779,-664.18,0.0001969,3]
[406669559,1772055043788,-162.39443016,0.00019693,2]
[406669560,1772055043798,-162.39443016,0.00019697,2]
[406669561,1772055043807,-10000.0,0.000197,2]
[406669562,1772055043817,-162.39443016,0.000197,2]
[406669563,1772055043826,-151.0,0.0001979,2]
[406669564,1772055043835,-151.0,0.0001979,2]
[406669565,1772055043844,-151.0,0.0001979,2]
[406669566,1772055043854,-500.0,0.00019799,2]
[406669567,1772055043864,-500.0,0.00019799,2]
[406669568,1772055043874,-500.0,0.00019799,2]
[406669569,1772055043883,-500.0,0.00019799,2]
[406669570,1772055043892,-172723.26914366,0.000198,2]
[406669573,1772055045759,-250.0,0.00018979,2]
[406669574,1772055045769,-151.0,0.00018979,2]
[406669575,1772055045778,-250.0,0.00018979,2]
[406669576,1772055045788,-155.99127554,0.00018979,2]
[406669577,1772055045798,-94.00872446,0.00018979,2]
[406669578,1772055045808,-151.0,0.00018979,2]
[406669579,1772055045818,-250.0,0.00018979,2]
[406669580,1772055045827,-250.0,0.00018979,2]
[406669581,1772055045838,-250.0,0.00018979,2]
[406669582,1772055045847,-250.0,0.00018979,2]
[406669583,1772055045856,-151.0,0.00018979,2]
[406669584,1772055045866,-250.0,0.00018979,2]
[406669585,1772055045876,-250.0,0.00018979,2]
[406669586,1772055045885,-151.0,0.00018979,2]
[406669587,1772055045895,-250.0,0.00018979,2]
[406669588,1772055045904,-250.0,0.00018979,2]
[406669589,1772055045913,-151.0,0.00018979,2]
[406669590,1772055045923,-250.0,0.00018979,2]
[406669591,1772055045933,-250.0,0.00018979,2]
[406669592,1772055045943,-151.0,0.00018979,2]